bitfinex/quotes_BTCUSD_20240703
["timestamp","ask_amount","ask_price","bid_price","bid_amount"]
[1720009361529,0.01513709,60301.0,60300.0,0.11395771]
[1720009361931,0.33042382,60303.0,60300.0,0.35209937]
[1720009362135,0.1,60302.0,60301.0,0.19814166]
[1720009362336,0.3386,60302.0,60301.0,0.19814166]
[1720009362682,0.40237628,60302.0,60301.0,0.23814166]
[1720009362913,0.40237628,60302.0,60301.0,0.19814166]
[1720009364207,0.40637628,60302.0,60301.0,0.19814166]
[1720009365014,0.40737628,60302.0,60301.0,0.19814166]
[1720009365714,0.4073916,60302.0,60301.0,0.19814166]
[1720009366128,0.40739237,60302.0,60301.0,0.19814166]
[1720009366837,0.40739237,60302.0,60300.0,0.11395771]
[1720009367000,0.40739237,60302.0,60301.0,0.19814166]
[1720009367675,0.40739237,60302.0,60301.0,0.23814166]
[1720009368883,0.40739237,60302.0,60301.0,0.38209937]
[1720009368884,0.105,60302.0,60301.0,0.38209937]
[1720009369083,0.105,60302.0,60301.0,0.65679817]
[1720009369084,0.005,60302.0,60301.0,0.65679817]
[1720009369276,0.005,60302.0,60301.0,0.80239817]
[1720009370689,0.01879375,60302.0,60301.0,0.80239817]
[1720009371089,0.01479375,60302.0,60301.0,0.80239817]
[1720009371879,0.01479364,60302.0,60301.0,0.80239817]
[1720009372151,0.01479364,60302.0,60301.0,0.77239817]
[1720009372527,0.01479364,60302.0,60301.0,0.61209937]
[1720009372738,0.01479364,60302.0,60301.0,0.61809937]
[1720009374450,0.01379364,60302.0,60301.0,0.61809937]
[1720009375002,0.1,60305.0,60304.0,0.11395771]
[1720009375207,0.11379491,60305.0,60304.0,0.35209937]
[1720009376144,0.11379491,60305.0,60304.0,0.35409937]
[1720009377990,0.11379491,60305.0,60304.0,0.35809937]
[1720009378336,0.1,60305.0,60304.0,0.35809937]
[1720009379233,0.10204,60312.0,60310.0,0.23814166]
[1720009379234,0.1,60311.0,60310.0,0.23814166]
[1720009379447,0.2386,60311.0,60310.0,0.23814166]
[1720009379650,0.1,60311.0,60310.0,0.23814166]
[1720009380057,0.11389025,60311.0,60310.0,0.19814166]
[1720009380303,0.35249025,60311.0,60309.0,0.11395771]
[1720009380505,0.11389025,60310.0,60309.0,0.35209937]
[1720009381323,0.11389025,60310.0,60309.0,0.11395771]
[1720009381499,0.11389025,60310.0,60309.0,0.31209937]
[1720009381716,0.31637925,60310.0,60309.0,0.35209937]
[1720009381930,0.41637925,60310.0,60309.0,0.35209937]
[1720009382429,0.3386,60310.0,60309.0,0.35209937]
[1720009382626,0.41662379,60310.0,60309.0,0.35209937]
[1720009384433,0.17802379,60310.0,60309.0,0.35209937]
[1720009384634,0.17802379,60310.0,60309.0,0.46939937]
[1720009384635,0.08302379,60310.0,60309.0,0.46939937]
[1720009384873,0.08334459,60310.0,60309.0,0.46939937]
[1720009386103,0.08334459,60310.0,60309.0,0.49939937]
[1720009386278,0.08334459,60310.0,60309.0,0.63689937]
[1720009386575,0.08334459,60310.0,60309.0,0.60689937]
[1720009387636,0.01919604,60310.0,60309.0,0.60689937]
[1720009387992,0.01946283,60310.0,60309.0,0.60689937]
[1720009388400,0.02146283,60310.0,60309.0,0.60689937]
[1720009389978,0.02146283,60310.0,60309.0,0.63689937]
[1720009390845,0.02146283,60310.0,60309.0,0.60689937]
[1720009391255,0.02178807,60310.0,60309.0,0.60689937]
[1720009391656,0.007,60310.0,60309.0,0.60689937]
[1720009391909,0.02174389,60310.0,60309.0,0.60689937]
[1720009393068,0.01674389,60310.0,60309.0,0.60689937]
[1720009393273,0.01474389,60310.0,60309.0,0.60689937]
[1720009393472,0.01474389,60310.0,60309.0,0.60989937]
[1720009393674,0.01474389,60310.0,60309.0,0.61589937]
[1720009393911,0.01474389,60310.0,60309.0,0.64589937]
[1720009394300,0.00084,60312.0,60311.0,0.23814166]
[1720009394547,0.01559267,60312.0,60311.0,0.23814166]
[1720009394769,0.01559267,60312.0,60311.0,0.35209937]
[1720009395310,0.01559267,60312.0,60311.0,0.38209937]
[1720009395793,0.01559267,60312.0,60311.0,0.35209937]
[1720009397595,0.01586774,60312.0,60311.0,0.35509937]
[1720009397997,0.01586774,60312.0,60311.0,0.38509937]
[1720009398868,0.01586774,60312.0,60311.0,0.35509937]
[1720009399064,0.01586774,60312.0,60311.0,0.38509937]
[1720009399291,0.01586774,60312.0,60311.0,0.80919817]
[1720009400457,0.00084,60312.0,60311.0,0.80919817]
[1720009400941,0.00084,60312.0,60311.0,0.79189415]
[1720009401242,0.01814403,60312.0,60311.0,0.79189415]
[1720009401450,0.00084,60312.0,60311.0,0.79189415]
[1720009401624,0.00084,60312.0,60311.0,0.79889415]
[1720009401625,0.00184,60312.0,60311.0,0.79889415]
[1720009402032,0.00184,60312.0,60311.0,0.80089415]
[1720009402033,0.01814403,60312.0,60311.0,0.80089415]
[1720009402242,0.01814403,60312.0,60311.0,0.78889415]
[1720009402445,0.01914403,60312.0,60311.0,0.80289415]
[1720009402642,0.01914403,60312.0,60311.0,0.81689415]
[1720009402848,0.03293575,60312.0,60311.0,0.78689415]
[1720009403892,0.03293546,60312.0,60311.0,0.78689415]
[1720009404293,0.03293547,60312.0,60311.0,0.78689415]
[1720009404742,0.03293547,60312.0,60311.0,0.36279535]
[1720009404953,0.27153547,60312.0,60311.0,0.36279535]
[1720009405104,0.37153547,60312.0,60311.0,0.36279535]
[1720009405503,0.37053547,60312.0,60311.0,0.34879535]
[1720009405954,0.37153547,60312.0,60311.0,0.35679535]
[1720009406503,0.13293547,60312.0,60311.0,0.35679535]
[1720009406886,0.03293547,60312.0,60311.0,0.34279535]
[1720009407110,0.13293686,60312.0,60311.0,0.34279535]
[1720009407276,0.13293686,60312.0,60311.0,0.35379535]
[1720009407896,0.13293686,60312.0,60311.0,0.38379535]
[1720009408073,0.03293686,60312.0,60311.0,0.35379535]
[1720009408467,0.03293686,60312.0,60311.0,0.38379535]
[1720009409269,0.03293686,60312.0,60311.0,0.38471935]
[1720009410327,0.01914403,60312.0,60311.0,0.38471935]
[1720009410700,0.03293673,60312.0,60311.0,0.38471935]
[1720009410913,0.03293673,60312.0,60311.0,0.59520009]
[1720009411123,0.03293673,60312.0,60311.0,0.79601815]
[1720009413687,0.03293534,60312.0,60311.0,0.79601815]
[1720009415576,0.03293534,60312.0,60311.0,1.09601815]
[1720009416185,0.01914403,60312.0,60311.0,1.09601815]
[1720009417437,0.01914403,60312.0,60311.0,0.79601815]
[1720009417642,0.01914403,60312.0,60311.0,1.09601815]
[1720009419013,0.01914403,60312.0,60311.0,1.42087599]
[1720009419215,0.00838,60323.0,60322.0,0.66479535]
[1720009419555,0.00838,60323.0,60322.0,1.64501875]
[1720009419793,0.02568403,60323.0,60322.0,1.64501875]
[1720009419991,0.02568403,60323.0,60322.0,1.40641875]
[1720009420397,0.02568403,60323.0,60322.0,1.60641875]
[1720009421412,0.00835,60335.0,60334.0,0.36479535]
[1720009421579,0.00835,60335.0,60334.0,1.11141875]
[1720009421781,0.02565403,60335.0,60334.0,1.11141875]
[1720009422129,0.00835,60335.0,60334.0,0.81141875]
[1720009422544,0.00835,60335.0,60334.0,1.31141875]
[1720009422767,0.00835,60335.0,60334.0,1.87301875]
[1720009422945,0.00835,60335.0,60334.0,1.88401875]
[1720009423146,0.00835,60335.0,60334.0,1.62241875]
[1720009424203,0.00835,60335.0,60334.0,1.61141875]
[1720009425226,0.00835,60335.0,60334.0,1.62541875]
[1720009425628,0.00835,60335.0,60334.0,1.61141875]
[1720009425837,0.00835,60335.0,60334.0,1.62541875]
[1720009426161,0.00835,60335.0,60334.0,1.63941875]
[1720009426362,0.00835,60335.0,60334.0,1.62541875]
[1720009426572,0.00835,60335.0,60334.0,1.63941875]
[1720009427048,0.00835,60335.0,60334.0,1.60889415]
[1720009427806,0.00835,60335.0,60334.0,1.62289415]
[1720009428248,0.00835,60335.0,60334.0,1.87049415]
[1720009428452,0.00335,60335.0,60334.0,1.87049415]
[1720009428660,0.00335,60335.0,60334.0,1.88449415]
[1720009431043,0.00835,60341.0,60339.0,1.16479535]
[1720009431244,0.00835,60341.0,60339.0,2.28150457]
[1720009432035,0.00835,60341.0,60339.0,2.11577457]
[1720009432518,0.00835,60341.0,60339.0,1.86071875]
[1720009432724,0.00835,60341.0,60339.0,1.62211875]
[1720009432955,0.00835,60341.0,60339.0,1.63611875]
[1720009433360,0.00835,60341.0,60339.0,1.65011875]
[1720009433892,0.00835,60341.0,60339.0,1.62711875]
[1720009436352,0.00835,60341.0,60339.0,1.61059415]
[1720009439103,0.00835,60341.0,60339.0,1.31059415]
[1720009439260,0.00835,60341.0,60339.0,1.61059415]
[1720009440328,0.00835,60341.0,60339.0,1.31059415]
[1720009440527,0.00835,60341.0,60339.0,1.61059415]
[1720009440730,0.00835,60341.0,60339.0,1.61069415]
[1720009441945,0.00835,60341.0,60339.0,1.84929415]
[1720009442117,0.00835,60341.0,60339.0,1.87229415]
[1720009444141,0.00835,60341.0,60339.0,2.21292415]
[1720009444522,0.00835,60341.0,60339.0,2.54438415]
[1720009445225,0.00835,60341.0,60339.0,2.87584415]
[1720009445769,0.00084,60345.0,60344.0,1.50541135]
[1720009445978,0.00837,60352.0,60351.0,1.60489535]
[1720009446192,0.00837,60352.0,60351.0,2.54040975]
[1720009446390,0.00837,60352.0,60351.0,2.87180375]
[1720009448576,0.00837,60352.0,60351.0,2.88580375]
[1720009448954,0.00837,60352.0,60351.0,3.35496406]
[1720009449153,0.00837,60352.0,60351.0,3.38823406]
[1720009449571,0.00837,60352.0,60351.0,3.38833406]
[1720009450385,0.00837,60352.0,60351.0,2.38015206]
[1720009450581,0.00837,60352.0,60351.0,2.07668875]
[1720009450791,0.00837,60352.0,60351.0,1.75868958]
[1720009450996,0.00837,60352.0,60351.0,1.62091875]
[1720009451350,0.00837,60352.0,60351.0,1.61512584]
[1720009451554,0.00837,60352.0,60351.0,1.62912584]
[1720009452051,0.00837,60352.0,60351.0,2.28721684]
[1720009452293,0.00837,60352.0,60351.0,2.75638373]
[1720009452519,0.00835,60361.0,60360.0,1.83671235]
[1720009452758,0.00835,60361.0,60360.0,3.01685364]
[1720009453915,0.00835,60361.0,60360.0,2.77825364]
[1720009454122,0.00835,60361.0,60360.0,3.05012364]
[1720009454345,0.00835,60361.0,60360.0,3.05009721]
[1720009454543,0.00835,60361.0,60360.0,2.81149721]
[1720009454746,0.00835,60361.0,60360.0,3.06409721]
[1720009455800,0.00835,60361.0,60360.0,3.05009721]
[1720009456719,0.00835,60361.0,60360.0,3.06409721]
[1720009456939,0.00835,60361.0,60360.0,3.05009669]
[1720009457348,0.00835,60361.0,60360.0,3.07809669]
[1720009457791,0.00835,60361.0,60360.0,2.73022709]
[1720009457989,0.00835,60361.0,60360.0,2.36561209]
[1720009458427,0.00835,60361.0,60360.0,2.22786615]
[1720009458751,0.00835,60361.0,60360.0,1.40081976]
[1720009459043,0.00835,60361.0,60360.0,1.55271976]
[1720009459186,0.00835,60361.0,60360.0,1.71839176]
[1720009459590,0.00835,60361.0,60360.0,1.70439176]
[1720009460093,0.00835,60361.0,60360.0,1.71839176]
[1720009460313,0.00835,60361.0,60360.0,1.72739176]
[1720009460516,0.00835,60361.0,60360.0,1.71339176]
[1720009460758,0.00835,60361.0,60360.0,1.87914542]
[1720009461063,0.00835,60361.0,60360.0,2.21049042]
[1720009461399,0.00835,60361.0,60360.0,2.25968001]
[1720009461593,0.00835,60361.0,60360.0,1.92833501]
[1720009461821,0.00835,60361.0,60360.0,1.74866301]
[1720009462291,0.00835,60361.0,60360.0,1.40081976]
[1720009463391,0.00835,60361.0,60360.0,1.10081976]
[1720009463521,0.00835,60361.0,60360.0,0.55309415]
[1720009463737,0.00835,60361.0,60360.0,0.52309415]
[1720009463939,0.10835,60361.0,60360.0,0.52309415]
[1720009464147,0.24115,60361.0,60360.0,0.52309415]
[1720009464353,0.24115,60361.0,60360.0,0.50909415]
[1720009464638,0.24115,60361.0,60360.0,0.34009937]
[1720009464834,0.36165,60361.0,60360.0,0.34009937]
[1720009465308,0.36165,60361.0,60360.0,0.32609937]
[1720009465737,0.36165,60361.0,60360.0,0.00544]
[1720009465934,0.2463,60360.0,60358.0,0.30602737]
[1720009466152,0.161,60359.0,60358.0,0.04432737]
[1720009466320,0.161,60359.0,60358.0,0.06702335]
[1720009466723,0.1886,60359.0,60358.0,0.06702335]
[1720009467291,0.0886,60359.0,60358.0,0.06702335]
[1720009469725,0.08816032,60359.0,60358.0,0.06702335]
[1720009471125,0.08916032,60359.0,60358.0,0.06702335]
[1720009471483,0.08816032,60359.0,60358.0,0.06702335]
[1720009471819,0.08816032,60359.0,60358.0,0.06802335]
[1720009473731,0.08816032,60359.0,60358.0,0.06702335]
[1720009473928,0.08916032,60359.0,60358.0,0.07402335]
[1720009474251,0.08816032,60359.0,60358.0,0.07102335]
[1720009474655,0.08816032,60359.0,60358.0,0.08012569]
[1720009474797,0.08816032,60359.0,60358.0,0.07002335]
[1720009476258,0.19795461,60374.0,60358.0,0.07002335]
[1720009476494,0.01378086,60373.0,60367.0,0.02269598]
[1720009476813,0.01378086,60372.0,60367.0,0.02269598]
[1720009477100,0.01378086,60371.0,60367.0,0.02269598]
[1720009477400,0.01378086,60371.0,60364.0,0.04432737]
[1720009477401,0.01378086,60370.0,60369.0,0.02269598]
[1720009477599,0.01378091,60373.0,60370.0,0.02269598]
[1720009477837,0.01378091,60372.0,60366.0,0.02269598]
[1720009478003,0.01378091,60371.0,60369.0,0.02269598]
[1720009478207,0.2223792,60374.0,60369.0,0.02269598]
[1720009478208,0.01378091,60370.0,60369.0,0.02269598]
[1720009478448,0.01378091,60370.0,60366.0,0.02269598]
[1720009478637,0.01378091,60369.0,60367.0,0.02369598]
[1720009478856,0.011,60372.0,60367.0,0.02369598]
[1720009479012,0.01378055,60371.0,60367.0,0.02369598]
[1720009479194,0.01378055,60370.0,60367.0,0.02369598]
[1720009479420,0.011,60372.0,60371.0,0.06702335]
[1720009479620,0.2496,60372.0,60371.0,0.04432737]
[1720009479854,0.2633797,60372.0,60371.0,0.04432737]
[1720009480427,0.28068372,60372.0,60371.0,0.04432737]
[1720009480627,0.26968372,60372.0,60371.0,0.04432737]
[1720009480836,0.36968372,60372.0,60371.0,0.04432737]
[1720009481038,0.3523797,60372.0,60371.0,0.04432737]
[1720009481470,0.3553797,60372.0,60371.0,0.04432737]
[1720009481882,0.1237797,60372.0,60371.0,0.06802335]
[1720009482084,0.0167797,60372.0,60371.0,0.06702335]
[1720009482385,0.01678033,60372.0,60371.0,0.06702335]
[1720009482566,0.02378033,60372.0,60371.0,0.06802335]
[1720009483514,0.02078033,60372.0,60371.0,0.06802335]
[1720009483630,0.02078033,60372.0,60371.0,0.04532737]
[1720009483836,0.02878033,60372.0,60371.0,0.04632737]
[1720009484336,0.01378033,60372.0,60371.0,0.04432737]
[1720009484762,0.01578033,60372.0,60371.0,0.04432737]
[1720009484961,0.01878033,60372.0,60371.0,0.04432737]
[1720009485472,0.01578016,60372.0,60371.0,0.04432737]
[1720009485910,0.01578016,60372.0,60371.0,0.06702335]
[1720009486583,0.002,60372.0,60371.0,0.22732215]
[1720009486730,0.002,60372.0,60371.0,0.25305437]
[1720009486939,0.002,60372.0,60371.0,0.25732215]
[1720009487139,0.00835,60384.0,60381.0,0.01269598]
[1720009487539,0.00835,60384.0,60371.0,0.21462617]
[1720009487540,0.00835,60384.0,60376.0,0.06702335]
[1720009487710,0.00835,60384.0,60378.0,0.02269598]
[1720009487908,0.00835,60384.0,60380.0,0.02269598]
[1720009488108,0.00835,60384.0,60381.0,0.02269598]
[1720009488309,0.00835,60384.0,60383.0,0.02269598]
[1720009488514,0.03492486,60384.0,60383.0,0.02269598]
[1720009488729,0.01035,60384.0,60383.0,0.02269598]
[1720009489108,0.01035,60384.0,60382.0,0.04432737]
[1720009489509,0.01035,60384.0,60382.0,0.06702335]
[1720009489700,0.01035,60384.0,60382.0,0.04432737]
[1720009489872,0.0266254,60383.0,60382.0,0.04432737]
[1720009490079,0.04392942,60383.0,60382.0,0.04432737]
[1720009490400,0.01730402,60378.0,60377.0,0.04432737]
[1720009490596,0.25590402,60378.0,60377.0,0.04432737]
[1720009490797,0.2386,60378.0,60377.0,0.04432737]
[1720009491116,0.35590402,60378.0,60377.0,0.04432737]
[1720009491320,0.3386,60378.0,60377.0,0.04432737]
[1720009491686,0.35590402,60378.0,60377.0,0.04432737]
[1720009491886,0.40887695,60378.0,60377.0,0.04432737]
[1720009492139,0.35990402,60378.0,60377.0,0.04432737]
[1720009492304,0.39157373,60378.0,60377.0,0.04432737]
[1720009492612,0.42177775,60378.0,60377.0,0.04432737]
[1720009492847,0.42177775,60378.0,60375.0,0.04432737]
[1720009493021,0.1,60377.0,60375.0,0.04432737]
[1720009493234,0.01730402,60376.0,60375.0,0.04432737]
[1720009493434,0.06627775,60376.0,60375.0,0.04432737]
[1720009494852,0.01730402,60375.0,60374.0,0.04432737]
[1720009495052,0.04247778,60376.0,60372.0,0.04432737]
[1720009495053,0.01730402,60374.0,60372.0,0.04432737]
[1720009495223,0.01730402,60374.0,60373.0,0.04432737]
[1720009495470,0.01730402,60370.0,60369.0,0.45873682]
[1720009496019,0.01730402,60369.0,60368.0,0.04432737]
[1720009496222,0.06637188,60369.0,60368.0,0.04432737]
[1720009496418,0.04906786,60369.0,60368.0,0.04432737]
[1720009496972,0.06637188,60369.0,60368.0,0.04432737]
[1720009497127,0.06196786,60369.0,60368.0,0.04432737]
[1720009497325,0.30056786,60369.0,60368.0,0.04432737]
[1720009497550,0.40056786,60369.0,60368.0,0.04432737]
[1720009497726,0.40056786,60369.0,60365.0,0.04432737]
[1720009497928,0.1,60368.0,60367.0,0.04432737]
[1720009498113,0.1494746,60368.0,60367.0,0.04432737]
[1720009499144,0.0494746,60368.0,60367.0,0.04432737]
[1720009499553,0.0574746,60368.0,60367.0,0.04532737]
[1720009500180,0.008,60368.0,60367.0,0.04532737]
[1720009501048,0.07522095,60368.0,60367.0,0.04532737]
[1720009501263,0.07522095,60368.0,60367.0,0.04632737]
[1720009501264,0.08222095,60368.0,60367.0,0.04632737]
[1720009501853,0.06491693,60368.0,60367.0,0.04632737]
[1720009502679,0.08222095,60368.0,60367.0,0.04632737]
[1720009503233,0.18222095,60368.0,60367.0,0.04632737]
[1720009504639,0.20298358,60368.0,60367.0,0.002]
[1720009505106,0.18222095,60368.0,60367.0,0.002]
[1720009507173,0.16491693,60368.0,60367.0,0.002]
[1720009507531,0.16491693,60368.0,60367.0,0.02469598]
[1720009507735,0.16491693,60368.0,60367.0,0.002]
[1720009508227,0.16491693,60368.0,60367.0,0.02469598]
[1720009508430,0.16491693,60368.0,60367.0,0.06902335]
[1720009508630,0.015,60368.0,60367.0,0.06993635]
[1720009508828,0.015,60368.0,60367.0,0.36414786]
[1720009509268,0.015,60368.0,60367.0,0.39414786]
[1720009509470,0.007,60368.0,60367.0,0.49644786]
[1720009510240,0.007,60368.0,60367.0,0.79644786]
[1720009510885,0.00083,60376.0,60375.0,0.34162335]
[1720009511090,0.00083,60376.0,60375.0,0.47192215]
[1720009511295,0.00083,60376.0,60375.0,0.50192215]
[1720009511885,0.00083,60376.0,60375.0,0.47192215]
[1720009512087,0.00083,60376.0,60375.0,0.31162335]
[1720009512686,0.00183,60376.0,60375.0,0.32162335]
[1720009513116,0.00183,60376.0,60375.0,0.35162335]
[1720009513782,0.00183,60376.0,60375.0,0.32162335]
[1720009513985,0.00083,60376.0,60375.0,0.31162335]
[1720009514210,0.00083,60376.0,60375.0,0.34493559]
[1720009514417,0.00183,60376.0,60375.0,0.35493559]
[1720009514960,0.00183,60376.0,60375.0,0.39208161]
[1720009515162,0.00183,60376.0,60375.0,0.35493559]
[1720009515920,0.00283,60376.0,60375.0,0.33693559]
[1720009516347,0.00283,60376.0,60375.0,0.36693559]
[1720009517149,0.00283,60376.0,60375.0,0.52723439]
[1720009519354,0.00283,60376.0,60375.0,0.49723439]
[1720009519659,0.00283,60376.0,60375.0,0.49392215]
[1720009519859,0.00283,60376.0,60375.0,0.52392215]
[1720009522770,0.00283,60376.0,60375.0,1.12392215]
[1720009523787,0.00835,60384.0,60383.0,0.34072335]
[1720009523941,0.00835,60384.0,60383.0,0.51754675]
[1720009525175,0.00935,60384.0,60383.0,0.49454675]
[1720009525908,0.00835,60384.0,60383.0,0.48754675]
[1720009526094,0.00835,60384.0,60383.0,0.49554675]
[1720009526253,0.00835,60384.0,60383.0,0.48754675]
[1720009526597,0.00835,60384.0,60383.0,0.24384675]
[1720009526842,0.00835,60384.0,60383.0,0.25584675]
[1720009527364,0.00835,60384.0,60383.0,0.26984675]
[1720009527802,0.00835,60384.0,60383.0,0.25784675]
[1720009528000,0.00835,60384.0,60383.0,0.24384675]
[1720009528283,0.00835,60384.0,60383.0,0.06085197]
[1720009528561,0.00835,60384.0,60383.0,0.05132737]
[1720009528562,0.0221265,60384.0,60383.0,0.05132737]
[1720009528957,0.0221265,60384.0,60383.0,0.04432737]
[1720009529517,0.00835,60384.0,60383.0,0.04432737]
[1720009529857,0.00835,60384.0,60383.0,0.05232737]
[1720009530059,0.00835,60384.0,60383.0,0.04432737]
[1720009531062,0.00835,60384.0,60383.0,0.06702335]
[1720009533582,0.00835,60384.0,60383.0,0.17502335]
[1720009533780,0.00835,60384.0,60383.0,0.19585687]
[1720009534769,0.00835,60384.0,60383.0,0.32325687]
[1720009535415,0.00835,60384.0,60383.0,0.48355567]
[1720009535590,0.00835,60384.0,60383.0,0.48855567]
[1720009536097,0.00835,60384.0,60383.0,0.46772215]
[1720009536989,0.00835,60384.0,60383.0,0.46272215]
[1720009537546,0.00835,60384.0,60383.0,0.46972215]
[1720009537925,0.00835,60384.0,60383.0,0.05932737]
[1720009538741,0.00835,60384.0,60383.0,0.05132737]
[1720009539191,0.24695,60384.0,60383.0,0.05532737]
[1720009539408,0.39808559,60384.0,60383.0,0.04832737]
[1720009540657,0.39765785,60384.0,60383.0,0.04832737]
[1720009540921,0.39765785,60384.0,60383.0,0.05132737]
[1720009541090,0.39765785,60384.0,60383.0,0.04732737]
[1720009541428,0.39765785,60384.0,60383.0,0.04432737]
[1720009542619,0.39765785,60384.0,60375.0,0.000913]
[1720009542620,0.41496187,60384.0,60381.0,0.04432737]
[1720009542759,0.25590402,60382.0,60381.0,0.04432737]
[1720009542966,0.35590402,60382.0,60381.0,0.04432737]
[1720009543386,0.3386,60382.0,60381.0,0.04432737]
[1720009543596,0.38930785,60382.0,60381.0,0.04432737]
[1720009543804,0.40308622,60382.0,60381.0,0.04432737]
[1720009544007,0.40670659,60382.0,60381.0,0.04432737]
[1720009545833,0.42401061,60382.0,60381.0,0.04432737]
[1720009547053,0.35590402,60382.0,60381.0,0.04432737]
[1720009547249,0.42413865,60382.0,60381.0,0.04432737]
[1720009547793,0.01730402,60381.0,60380.0,0.04432737]
[1720009547996,0.13108268,60381.0,60380.0,0.04432737]
[1720009548675,0.11377866,60381.0,60380.0,0.04432737]
[1720009549000,0.30683645,60381.0,60380.0,0.04432737]
[1720009549347,0.40683645,60381.0,60380.0,0.04432737]
[1720009549677,0.42414047,60381.0,60380.0,0.04432737]
[1720009550504,0.42466149,60381.0,60380.0,0.04432737]
[1720009550712,0.40735747,60381.0,60380.0,0.04432737]
[1720009551085,0.42466149,60381.0,60380.0,0.04432737]
[1720009551497,0.40735747,60381.0,60380.0,0.04432737]
[1720009552770,0.57501636,60381.0,60380.0,0.04432737]
[1720009553384,0.3386,60381.0,60380.0,0.04432737]
[1720009553556,0.40803038,60381.0,60380.0,0.04432737]
[1720009554065,0.5757451,60381.0,60380.0,0.04432737]
[1720009554288,0.16943038,60381.0,60380.0,0.06702335]
[1720009554423,0.0137788,60381.0,60380.0,0.06702335]
[1720009554626,0.0137788,60381.0,60380.0,0.19652335]
[1720009556144,0.0137788,60381.0,60380.0,0.04432737]
[1720009556550,0.1,60382.0,60381.0,0.04432737]
[1720009556751,0.33698316,60382.0,60381.0,0.04432737]
[1720009556962,0.3542921,60382.0,60381.0,0.04432737]
[1720009557162,0.18652183,60382.0,60381.0,0.04432737]
[1720009557748,0.18652183,60382.0,60380.0,0.04432737]
[1720009557749,0.01730402,60381.0,60380.0,0.04432737]
[1720009557950,0.26968188,60381.0,60380.0,0.04432737]
[1720009558173,0.42512183,60381.0,60380.0,0.04432737]
[1720009558914,0.01730402,60379.0,60378.0,0.04432737]
[1720009559116,0.26968188,60379.0,60378.0,0.04432737]
[1720009559316,0.36968188,60379.0,60378.0,0.04432737]
[1720009559478,0.42512183,60379.0,60378.0,0.04432737]
[1720009559675,0.35590402,60379.0,60378.0,0.04432737]
[1720009559875,0.01730402,60378.0,60377.0,0.04432737]
[1720009560102,0.13108324,60378.0,60377.0,0.04432737]
[1720009560343,0.18664874,60378.0,60377.0,0.04432737]
[1720009560675,0.35439393,60378.0,60377.0,0.04432737]
[1720009560895,0.18664874,60378.0,60377.0,0.04432737]
[1720009561496,0.18664874,60378.0,60375.0,0.000913]
[1720009561497,0.01730402,60376.0,60375.0,0.04524037]
[1720009561755,0.03108318,60376.0,60375.0,0.04524037]
[1720009561959,0.13108318,60376.0,60375.0,0.04524037]
[1720009562115,0.11377916,60376.0,60375.0,0.04524037]
[1720009562313,0.16935292,60376.0,60375.0,0.04524037]
[1720009562519,0.16935292,60376.0,60375.0,0.06793635]
[1720009562945,0.06935292,60376.0,60375.0,0.07993635]
[1720009563261,0.1,60378.0,60376.0,0.02269598]
[1720009563475,0.1,60378.0,60377.0,0.04432737]
[1720009563691,0.11377803,60378.0,60377.0,0.04432737]
[1720009564232,0.01377803,60378.0,60377.0,0.04432737]
[1720009566251,0.26770737,60382.0,60380.0,0.04432737]
[1720009566572,0.1,60382.0,60380.0,0.04432737]
[1720009567956,0.1,60382.0,60380.0,0.06702335]
[1720009568184,0.05518242,60381.0,60380.0,0.06702335]
[1720009568692,0.1,60382.0,60380.0,0.06702335]
[1720009569736,0.2352293,60382.0,60378.0,0.04432737]
[1720009569942,0.2352293,60382.0,60375.0,0.000913]
[1720009569943,0.01730402,60379.0,60375.0,0.04524037]
[1720009570144,0.25590402,60376.0,60375.0,0.04524037]
[1720009570387,0.35590402,60376.0,60375.0,0.04524037]
[1720009570563,0.5678231,60376.0,60375.0,0.000913]
[1720009571255,0.5678231,60376.0,60375.0,0.007913]
[1720009572641,0.5678231,60376.0,60375.0,0.000913]
[1720009573046,0.01730402,60368.0,60362.0,0.04432737]
[1720009573293,0.25590402,60368.0,60362.0,0.04432737]
[1720009573601,0.35590402,60368.0,60360.0,0.04432737]
[1720009573973,0.35590402,60368.0,60359.0,0.04432737]
[1720009574171,0.01730402,60358.0,60357.0,0.04432737]
[1720009575085,0.1,60359.0,60358.0,0.04432737]
[1720009576514,0.2386,60359.0,60358.0,0.04432737]
[1720009576722,0.35590402,60359.0,60358.0,0.04432737]
[1720009576974,0.01730402,60358.0,60357.0,0.002]
[1720009577269,0.11730402,60358.0,60357.0,0.002]
[1720009577570,0.3655904,60367.0,60357.0,0.04632737]
[1720009577571,0.08015582,60366.0,60357.0,0.04632737]
[1720009577804,0.2386,60358.0,60356.0,0.04432737]
[1720009578009,0.02974277,60368.0,60357.0,0.04432737]
[1720009578120,0.2386,60362.0,60358.0,0.1237]
[1720009578324,0.01378333,60361.0,60358.0,0.1237]
[1720009578989,0.01378333,60361.0,60358.0,0.12302338]
[1720009579707,0.01378323,60360.0,60358.0,0.12302338]
[1720009579929,0.01378323,60359.0,60358.0,0.16302338]
[1720009580150,0.102,60361.0,60360.0,0.04]
[1720009580524,0.11578284,60361.0,60360.0,0.04]
[1720009580724,0.11578284,60361.0,60358.0,0.22172338]
[1720009580940,0.01378284,60360.0,60358.0,0.22172338]
[1720009581259,0.01378284,60359.0,60358.0,0.22172338]
[1720009582693,0.1,60361.0,60358.0,0.22172338]
[1720009582863,0.01378312,60360.0,60358.0,0.22172338]
[1720009583023,0.01378312,60359.0,60358.0,0.22172338]
[1720009584240,0.01378312,60359.0,60357.0,0.04432737]
[1720009584449,0.01378312,60358.0,60355.0,0.04432737]
[1720009584815,0.01378312,60358.0,60351.0,0.1032]
[1720009584816,0.2386,60356.0,60353.0,0.04432737]
[1720009585035,0.11378312,60355.0,60353.0,0.04432737]
[1720009585190,0.01378312,60354.0,60353.0,0.04432737]
[1720009585396,0.01378312,60354.0,60352.0,0.04432737]
[1720009585807,0.1,60355.0,60352.0,0.04432737]
[1720009586006,0.01378466,60354.0,60352.0,0.04432737]
[1720009586202,0.01378466,60353.0,60352.0,0.04432737]
[1720009586422,0.01378466,60353.0,60351.0,0.0001]
[1720009586423,0.19553727,60353.0,60351.0,0.0001]
[1720009586596,0.17408346,60352.0,60350.0,0.1]
[1720009586799,0.35238466,60351.0,60350.0,0.1]
[1720009587035,0.51268346,60351.0,60350.0,0.1]
[1720009587947,0.57465395,60351.0,60350.0,0.1]
[1720009588905,0.58636419,60351.0,60350.0,0.04853]
[1720009589108,0.96829952,60351.0,60350.0,0.01911178]
[1720009589308,0.66829952,60351.0,60350.0,0.01811178]
[1720009589608,0.97029952,60351.0,60350.0,0.01911178]
[1720009589971,0.66229952,60351.0,60350.0,0.01711178]
[1720009590177,0.3,60350.0,60342.0,0.04432737]